[Event "Early-Titled-Tuesday-Blitz-January-23-2024"]
[Site "Chess.com"]
[Date "2024.01.23"]
[Round "1"]
[White "andrzej"]
[Black "Hasangatin_Ramil"]
[Result "0-1"]
[WhiteElo "2388"]
[BlackElo "2698"]
[TimeControl "180+1"]
[EndTime "8:07:45 PST"]
[Termination "Hasangatin_Ramil won by resignation"]

1. e4 {[%clk 0:03:00.9]} 1... d5 {[%clk 0:02:59.4]} 2. exd5 {[%clk 0:03:00.6]}
2... Qxd5 {[%clk 0:03:00.3]} 3. Nc3 {[%clk 0:03:00.7]} 3... Qd6 {[%clk
0:03:00.9]} 4. d4 {[%clk 0:03:00.3]} 4... Nf6 {[%clk 0:03:01.5]} 5. Nf3 {[%clk
0:03:00.4]} 5... c6 {[%clk 0:03:02]} 6. g3 {[%clk 0:02:59.3]} 6... Bg4 {[%clk
0:03:01.9]} 7. Bg2 {[%clk 0:02:46.9]} 7... e6 {[%clk 0:03:02.2]} 8. O-O {[%clk
0:02:46.4]} 8... Be7 {[%clk 0:03:02]} 9. h3 {[%clk 0:02:44.2]} 9... Bxf3 {[%clk
0:03:01.9]} 10. Bxf3 {[%clk 0:02:38.2]} 10... O-O {[%clk 0:03:02.8]} 11. a3
{[%clk 0:02:33.1]} 11... Qc7 {[%clk 0:03:01.9]} 12. Ne2 {[%clk 0:02:24.8]} 12...
Nbd7 {[%clk 0:03:01.6]} 13. c4 {[%clk 0:02:22.9]} 13... Bd6 {[%clk 0:03:01.6]}
14. b4 {[%clk 0:02:18.6]} 14... Rad8 {[%clk 0:03:01.3]} 15. Qa4 {[%clk
0:02:13.9]} 15... a6 {[%clk 0:03:00.1]} 16. Be3 {[%clk 0:02:07.3]} 16... Rfe8
{[%clk 0:02:59.3]} 17. Rac1 {[%clk 0:02:05.3]} 17... h6 {[%clk 0:02:57.9]} 18.
Kg2 {[%clk 0:02:03]} 18... e5 {[%clk 0:02:57.9]} 19. Kh2 {[%clk 0:01:46.2]}
19... e4 {[%clk 0:02:50.8]} 20. Bg2 {[%clk 0:01:45.1]} 20... Nf8 {[%clk
0:02:49.9]} 21. Qc2 {[%clk 0:01:42.7]} 21... Ng6 {[%clk 0:02:44]} 22. Kh1 {[%clk
0:01:27.7]} 22... h5 {[%clk 0:02:33]} 23. Rfd1 {[%clk 0:01:19.7]} 23... h4
{[%clk 0:02:32.9]} 24. g4 {[%clk 0:01:19.6]} 24... Nf4 {[%clk 0:02:30.1]} 25.
Nxf4 {[%clk 0:01:19.2]} 25... Bxf4 {[%clk 0:02:29.9]} 26. Qd2 {[%clk 0:01:19.5]}
26... g5 {[%clk 0:02:23.9]} 27. Re1 {[%clk 0:01:11.6]} 27... Rd7 {[%clk
0:02:22.3]} 28. Qe2 {[%clk 0:01:07.9]} 28... Kg7 {[%clk 0:02:20.1]} 29. Rcd1
{[%clk 0:01:08.1]} 29... Qd6 {[%clk 0:02:16.8]} 30. Qb2 {[%clk 0:01:07.8]} 30...
Kg6 {[%clk 0:02:11.9]} 31. Qc2 {[%clk 0:01:07.4]} 31... Kh6 {[%clk 0:02:07]} 32.
Bc1 {[%clk 0:01:03.2]} 32... Bxc1 {[%clk 0:02:02.7]} 33. Qxc1 {[%clk 0:01:03.4]}
33... Qf4 {[%clk 0:02:02.9]} 34. Qc2 {[%clk 0:01:02.5]} 34... Red8 {[%clk
0:01:38]} 35. Qc3 {[%clk 0:00:46.1]} 35... b5 {[%clk 0:01:32.9]} 36. cxb5 {[%clk
0:00:42.4]} 36... cxb5 {[%clk 0:01:33.8]} 37. Qc6 {[%clk 0:00:30.3]} 37... Rd6
{[%clk 0:01:33.6]} 38. Qc5 {[%clk 0:00:30.3]} 38... Qxf2 {[%clk 0:00:50.7]} 39.
Rf1 {[%clk 0:00:27.5]} 39... Qg3 {[%clk 0:00:51.3]} 40. Rf5 {[%clk 0:00:15.7]}
40... e3 {[%clk 0:00:51]} 41. Rxg5 {[%clk 0:00:14.2]} 41... e2 {[%clk
0:00:51.3]} 42. Rh5+ {[%clk 0:00:13.7]} 42... Nxh5 {[%clk 0:00:40]} 43. Qxh5+
{[%clk 0:00:14.6]} 43... Kg7 {[%clk 0:00:40.6]} 44. Qg5+ {[%clk 0:00:14]} 44...
Rg6 {[%clk 0:00:38.7]} 45. Qd2 {[%clk 0:00:04.6]} 45... exd1=Q+ {[%clk
0:00:35.9]} 46. Qxd1 {[%clk 0:00:05.5]} 46... Re6 {[%clk 0:00:27.7]} 47. d5
{[%clk 0:00:05.3]} 47... Re1+ {[%clk 0:00:27.2]} 0-1

[Event "Early-Titled-Tuesday-Blitz-January-23-2024"]
[Site "Chess.com"]
[Date "2024.01.23"]
[Round "1"]
[White "BasilSmash"]
[Black "kibromNNN"]
[Result "1-0"]
[WhiteElo "2541"]
[BlackElo "1647"]
[TimeControl "180+1"]
[EndTime "8:07:45 PST"]
[Termination "BasilSmash won on time"]

1. e4 {[%clk 0:02:48.9]} 1... d6 {[%clk 0:02:57]} 2. d4 {[%clk 0:02:47]} 2...
Nf6 {[%clk 0:02:56.4]} 3. Bd3 {[%clk 0:02:46.2]} 3... Nbd7 {[%clk 0:02:50.4]} 4.
Nf3 {[%clk 0:02:45.6]} 4... e5 {[%clk 0:02:49.2]} 5. c3 {[%clk 0:02:45.9]} 5...
Be7 {[%clk 0:02:44.6]} 6. O-O {[%clk 0:02:46]} 6... h6 {[%clk 0:02:39.6]} 7. Re1
{[%clk 0:02:45.9]} 7... O-O {[%clk 0:02:35.4]} 8. Nbd2 {[%clk 0:02:45.8]} 8...
Re8 {[%clk 0:02:31.3]} 9. Nf1 {[%clk 0:02:45.6]} 9... c6 {[%clk 0:02:28]} 10.
Ng3 {[%clk 0:02:45.5]} 10... Qc7 {[%clk 0:02:23.4]} 11. Nf5 {[%clk 0:02:44.7]}
11... Nf8 {[%clk 0:02:23.2]} 12. h3 {[%clk 0:02:34.1]} 12... Ng6 {[%clk
0:02:15.2]} 13. Nxe7+ {[%clk 0:02:25.3]} 13... Qxe7 {[%clk 0:02:08.9]} 14. a4
{[%clk 0:02:25.2]} 14... Be6 {[%clk 0:02:01.8]} 15. a5 {[%clk 0:02:21.3]} 15...
a6 {[%clk 0:01:55.5]} 16. Qc2 {[%clk 0:02:19]} 16... Qd7 {[%clk 0:01:42.7]} 17.
Kh2 {[%clk 0:02:18.1]} 17... Nh5 {[%clk 0:01:33.2]} 18. Bf1 {[%clk 0:02:12.1]}
18... Nhf4 {[%clk 0:01:30.2]} 19. dxe5 {[%clk 0:02:03]} 19... dxe5 {[%clk
0:01:26.7]} 20. Nxe5 {[%clk 0:02:02.7]} 20... Qc7 {[%clk 0:01:16.7]} 21. Nxg6
{[%clk 0:01:49.9]} 21... Nxg6+ {[%clk 0:00:57.6]} 22. Kg1 {[%clk 0:01:40.7]}
22... Rad8 {[%clk 0:00:55.3]} 23. Be3 {[%clk 0:01:38.4]} 23... Qe7 {[%clk
0:00:45.2]} 24. Rad1 {[%clk 0:01:35.1]} 24... Ne5 {[%clk 0:00:37.1]} 25. b4
{[%clk 0:01:30]} 25... Nc4 {[%clk 0:00:31.2]} 26. Bc5 {[%clk 0:01:17.1]} 26...
Qg5 {[%clk 0:00:28.2]} 27. g3 {[%clk 0:01:01.2]} 27... Rxd1 {[%clk 0:00:22.1]}
28. Rxd1 {[%clk 0:01:00.4]} 28... h5 {[%clk 0:00:19.1]} 29. h4 {[%clk
0:00:56.3]} 29... Qg6 {[%clk 0:00:16.4]} 30. Kh2 {[%clk 0:00:47.7]} 30... Ne5
{[%clk 0:00:14.9]} 31. Bg2 {[%clk 0:00:34.3]} 31... Bg4 {[%clk 0:00:14.1]} 32.
Rd6 {[%clk 0:00:30.3]} 32... Re6 {[%clk 0:00:09.5]} 33. Rxe6 {[%clk 0:00:21.8]}
33... Qxe6 {[%clk 0:00:09.4]} 34. Qd2 {[%clk 0:00:18.2]} 34... Nf3+ {[%clk
0:00:08]} 35. Bxf3 {[%clk 0:00:18.4]} 35... Bxf3 {[%clk 0:00:07.9]} 36. Qf4
{[%clk 0:00:17.8]} 36... Bg4 {[%clk 0:00:06.6]} 37. f3 {[%clk 0:00:17.3]} 37...
Qa2+ {[%clk 0:00:04.1]} 38. Kg1 {[%clk 0:00:16.4]} 38... Qb1+ {[%clk 0:00:03.3]}
39. Kg2 {[%clk 0:00:16.7]} 39... Qc2+ {[%clk 0:00:03.4]} 40. Bf2 {[%clk
0:00:16.1]} 1-0

[Event "Early-Titled-Tuesday-Blitz-January-23-2024"]
[Site "Chess.com"]
[Date "2024.01.23"]
[Round "1"]
[White "Matols"]
[Black "Lennis93"]
[Result "0-1"]
[WhiteElo "2385"]
[BlackElo "2694"]
[TimeControl "180+1"]
[EndTime "8:07:46 PST"]
[Termination "Lennis93 won by checkmate"]

1. d4 {[%clk 0:03:00.9]} 1... Nf6 {[%clk 0:02:59.4]} 2. c4 {[%clk 0:03:01.4]}
2... a6 {[%clk 0:02:58.7]} 3. g3 {[%clk 0:02:53.3]} 3... g6 {[%clk 0:02:57.3]}
4. Bg2 {[%clk 0:02:52.8]} 4... Bg7 {[%clk 0:02:57.7]} 5. Nc3 {[%clk 0:02:51.1]}
5... O-O {[%clk 0:02:53.9]} 6. Nf3 {[%clk 0:02:51.5]} 6... d5 {[%clk 0:02:53.6]}
7. cxd5 {[%clk 0:02:49.6]} 7... Nxd5 {[%clk 0:02:54.5]} 8. O-O {[%clk
0:02:49.3]} 8... c5 {[%clk 0:02:52.8]} 9. e4 {[%clk 0:02:42.2]} 9... Nxc3 {[%clk
0:02:51.7]} 10. bxc3 {[%clk 0:02:43.1]} 10... cxd4 {[%clk 0:02:52.1]} 11. cxd4
{[%clk 0:02:43.1]} 11... Bg4 {[%clk 0:02:51.9]} 12. Be3 {[%clk 0:02:41.4]} 12...
Nc6 {[%clk 0:02:51.6]} 13. e5 {[%clk 0:02:37.2]} 13... Rc8 {[%clk 0:02:46.3]}
14. h3 {[%clk 0:02:34.7]} 14... Be6 {[%clk 0:02:45.7]} 15. Ng5 {[%clk
0:02:30.7]} 15... Bd5 {[%clk 0:02:45.6]} 16. Ne4 {[%clk 0:02:30.6]} 16... b5
{[%clk 0:02:40.4]} 17. Nc5 {[%clk 0:02:29.5]} 17... Bxg2 {[%clk 0:02:40]} 18.
Kxg2 {[%clk 0:02:28]} 18... a5 {[%clk 0:02:37.9]} 19. Rc1 {[%clk 0:02:24.6]}
19... Nb4 {[%clk 0:02:35.8]} 20. Qe2 {[%clk 0:02:08.2]} 20... Qd5+ {[%clk
0:02:33.1]} 21. Kh2 {[%clk 0:02:04]} 21... Nxa2 {[%clk 0:02:25.9]} 22. Ra1
{[%clk 0:01:51.8]} 22... Nc3 {[%clk 0:02:14.8]} 23. Qb2 {[%clk 0:01:49.9]} 23...
Qc4 {[%clk 0:01:34.3]} 24. Rfc1 {[%clk 0:01:43.9]} 24... b4 {[%clk 0:01:17.8]}
25. Rxa5 {[%clk 0:01:42.9]} 25... Rfd8 {[%clk 0:01:10.8]} 26. Ra7 {[%clk
0:01:37.2]} 26... Bxe5 {[%clk 0:00:38.2]} 27. dxe5 {[%clk 0:01:30.7]} 27... Rxc5
{[%clk 0:00:38.2]} 28. Bxc5 {[%clk 0:01:28]} 28... Qxc5 {[%clk 0:00:39.1]} 29.
Rb7 {[%clk 0:01:20]} 29... Rd4 {[%clk 0:00:38.3]} 30. e6 {[%clk 0:01:14.2]}
30... fxe6 {[%clk 0:00:37.1]} 31. Ra1 {[%clk 0:01:06.1]} 31... Qd6 {[%clk
0:00:23.7]} 32. Ra8+ {[%clk 0:00:57]} 32... Kf7 {[%clk 0:00:22.5]} 33. Rbb8
{[%clk 0:00:44.9]} 33... Rd2 {[%clk 0:00:19.1]} 34. Rf8+ {[%clk 0:00:44.4]}
34... Kg7 {[%clk 0:00:19.4]} 35. Qc1 {[%clk 0:00:36.8]} 35... Qd4 {[%clk
0:00:18.5]} 36. Rg8+ {[%clk 0:00:30.1]} 36... Kh6 {[%clk 0:00:18.2]} 37. Raf8
{[%clk 0:00:25]} 37... g5 {[%clk 0:00:17.1]} 38. Qe1 {[%clk 0:00:18.7]} 38...
Ne4 {[%clk 0:00:15.9]} 39. Kg2 {[%clk 0:00:10.9]} 39... Nf6 {[%clk 0:00:10.1]}
40. Rh8 {[%clk 0:00:05.9]} 40... Kg7 {[%clk 0:00:07.7]} 41. h4 {[%clk
0:00:04.2]} 41... Qd5+ {[%clk 0:00:07.8]} 42. Kh2 {[%clk 0:00:03.4]} 42... Rxf2+
{[%clk 0:00:07.1]} 43. Kh3 {[%clk 0:00:01.4]} 43... g4# {[%clk 0:00:06.5]} 0-1

[Event "Early-Titled-Tuesday-Blitz-January-23-2024"]
[Site "Chess.com"]
[Date "2024.01.23"]
[Round "1"]
[White "LaPiToB"]
[Black "Adar_07"]
[Result "0-1"]
[WhiteElo "2328"]
[BlackElo "2641"]
[TimeControl "180+1"]
[EndTime "8:07:47 PST"]
[Termination "Adar_07 won by resignation"]

1. d4 {[%clk 0:03:00.9]} 1... Nf6 {[%clk 0:02:59.3]} 2. c4 {[%clk 0:03:00]} 2...
e6 {[%clk 0:02:58.9]} 3. Nf3 {[%clk 0:02:58.7]} 3... Bb4+ {[%clk 0:02:54.8]} 4.
Bd2 {[%clk 0:02:58.1]} 4... c5 {[%clk 0:02:55]} 5. dxc5 {[%clk 0:02:51.4]} 5...
Bxc5 {[%clk 0:02:54.7]} 6. Nc3 {[%clk 0:02:49.5]} 6... Nc6 {[%clk 0:02:53.8]} 7.
e3 {[%clk 0:02:36.6]} 7... O-O {[%clk 0:02:52.2]} 8. Bd3 {[%clk 0:02:35.2]} 8...
d5 {[%clk 0:02:49.6]} 9. cxd5 {[%clk 0:02:34.6]} 9... exd5 {[%clk 0:02:50.5]}
10. O-O {[%clk 0:02:34.2]} 10... Bg4 {[%clk 0:02:49.6]} 11. h3 {[%clk
0:02:32.7]} 11... Bh5 {[%clk 0:02:46.9]} 12. Be2 {[%clk 0:02:17.3]} 12... Re8
{[%clk 0:02:44.7]} 13. Rc1 {[%clk 0:02:15.5]} 13... Rc8 {[%clk 0:02:41.3]} 14.
Nb5 {[%clk 0:02:13]} 14... Bf8 {[%clk 0:02:39.5]} 15. Bc3 {[%clk 0:02:11.7]}
15... a6 {[%clk 0:02:39.6]} 16. Nbd4 {[%clk 0:02:10.5]} 16... Ne4 {[%clk
0:02:38.6]} 17. Nxc6 {[%clk 0:02:05.7]} 17... Rxc6 {[%clk 0:02:39.5]} 18. Bd4
{[%clk 0:01:54]} 18... Rg6 {[%clk 0:02:28.7]} 19. Ne5 {[%clk 0:01:47]} 19...
Bxe2 {[%clk 0:02:16.5]} 20. Qxe2 {[%clk 0:01:46.4]} 20... Rxe5 {[%clk
0:02:00.9]} 21. Bxe5 {[%clk 0:01:44.8]} 21... Qg5 {[%clk 0:02:01.6]} 22. f4
{[%clk 0:01:34.3]} 22... Qf5 {[%clk 0:01:55.7]} 23. Rf3 {[%clk 0:01:14.8]} 23...
h5 {[%clk 0:01:52.1]} 24. Qd3 {[%clk 0:01:09.7]} 24... Qd7 {[%clk 0:01:30.9]}
25. Rd1 {[%clk 0:01:06.9]} 25... Bc5 {[%clk 0:01:29.9]} 26. Bd4 {[%clk 0:01:01]}
26... Bd6 {[%clk 0:01:20.3]} 27. Be5 {[%clk 0:00:57.2]} 27... Bxe5 {[%clk
0:01:14.8]} 28. fxe5 {[%clk 0:00:57.3]} 28... Ng5 {[%clk 0:01:15.6]} 29. Rf5
{[%clk 0:00:35.1]} 29... Nxh3+ {[%clk 0:01:12.5]} 30. Kh2 {[%clk 0:00:35.4]}
30... Ng5 {[%clk 0:01:10.9]} 31. e4 {[%clk 0:00:33.2]} 31... Qa4 {[%clk
0:01:02.9]} 32. Qxd5 {[%clk 0:00:31]} 32... Ne6 {[%clk 0:00:45.4]} 33. Rd2
{[%clk 0:00:24.7]} 33... Qb4 {[%clk 0:00:27.6]} 34. Rxh5 {[%clk 0:00:23.7]}
34... Rxg2+ {[%clk 0:00:23.6]} 35. Kxg2 {[%clk 0:00:23.4]} 35... Nf4+ {[%clk
0:00:22.8]} 36. Kf3 {[%clk 0:00:24.1]} 36... Nxd5 {[%clk 0:00:22.9]} 37. Rxd5
{[%clk 0:00:21.2]} 37... g6 {[%clk 0:00:22]} 38. Rh2 {[%clk 0:00:20.8]} 38...
Qe1 {[%clk 0:00:19.4]} 39. Rhd2 {[%clk 0:00:21]} 39... Qf1+ {[%clk 0:00:18.3]}
40. Ke3 {[%clk 0:00:21.4]} 40... Qe1+ {[%clk 0:00:18.5]} 41. Kd3 {[%clk
0:00:21.8]} 41... g5 {[%clk 0:00:18.9]} 42. e6 {[%clk 0:00:19.8]} 42... Qg3+
{[%clk 0:00:19.5]} 43. Kc4 {[%clk 0:00:19.3]} 43... fxe6 {[%clk 0:00:20.4]} 44.
Rd7 {[%clk 0:00:18.3]} 44... Qe3 {[%clk 0:00:15.4]} 45. R2d4 {[%clk 0:00:17]}
45... Qe2+ {[%clk 0:00:15.3]} 46. Kc5 {[%clk 0:00:17.1]} 46... Qxb2 {[%clk
0:00:14.3]} 47. Rc7 {[%clk 0:00:11.7]} 47... Qb5+ {[%clk 0:00:14.3]} 48. Kd6
{[%clk 0:00:11.4]} 48... Qb6+ {[%clk 0:00:15.2]} 49. Kd7 {[%clk 0:00:11.3]}
49... Qxd4+ {[%clk 0:00:15.5]} 50. Kc8 {[%clk 0:00:11.3]} 50... Qxe4 {[%clk
0:00:14.5]} 51. Rxb7 {[%clk 0:00:10.8]} 51... Qxb7+ {[%clk 0:00:15.4]} 52. Kxb7
{[%clk 0:00:10.7]} 52... g4 {[%clk 0:00:16.3]} 0-1

[Event "Early-Titled-Tuesday-Blitz-January-23-2024"]
[Site "Chess.com"]
[Date "2024.01.23"]
[Round "1"]
[White "twofoxniel"]
[Black "giomar27"]
[Result "1-0"]
[WhiteElo "2689"]
[BlackElo "2378"]
[TimeControl "180+1"]
[EndTime "8:07:48 PST"]
[Termination "twofoxniel won on time"]

1. e4 {[%clk 0:03:00.9]} 1... g6 {[%clk 0:03:00]} 2. d4 {[%clk 0:03:00.5]} 2...
Bg7 {[%clk 0:03:00.4]} 3. c3 {[%clk 0:02:59.6]} 3... d6 {[%clk 0:02:59.1]} 4.
Nf3 {[%clk 0:02:59.3]} 4... a6 {[%clk 0:02:54.4]} 5. Bc4 {[%clk 0:02:54.7]} 5...
e6 {[%clk 0:02:53.4]} 6. Qe2 {[%clk 0:02:54.2]} 6... Ne7 {[%clk 0:02:50.9]} 7.
a4 {[%clk 0:02:53.3]} 7... O-O {[%clk 0:02:48.9]} 8. O-O {[%clk 0:02:52.8]} 8...
b6 {[%clk 0:02:48.7]} 9. Re1 {[%clk 0:02:49.6]} 9... Bb7 {[%clk 0:02:45.5]} 10.
Nbd2 {[%clk 0:02:50.2]} 10... Nd7 {[%clk 0:02:45.1]} 11. Nf1 {[%clk 0:02:48.3]}
11... h6 {[%clk 0:02:41.8]} 12. Ng3 {[%clk 0:02:46.3]} 12... c5 {[%clk 0:02:32]}
13. Be3 {[%clk 0:02:25.1]} 13... cxd4 {[%clk 0:02:23.8]} 14. cxd4 {[%clk
0:02:24.9]} 14... d5 {[%clk 0:02:23]} 15. Bd3 {[%clk 0:02:16.7]} 15... dxe4
{[%clk 0:02:20.4]} 16. Nxe4 {[%clk 0:02:10.3]} 16... Nf5 {[%clk 0:02:00.1]} 17.
Rad1 {[%clk 0:02:01.6]} 17... Nf6 {[%clk 0:01:53.3]} 18. Nc3 {[%clk 0:01:59.9]}
18... Nd5 {[%clk 0:01:35.8]} 19. Nxd5 {[%clk 0:01:33.6]} 19... Qxd5 {[%clk
0:01:28.4]} 20. Bc4 {[%clk 0:01:31.7]} 20... Qe4 {[%clk 0:01:24.9]} 21. Qd2
{[%clk 0:01:29.4]} 21... g5 {[%clk 0:01:13.8]} 22. Bxg5 {[%clk 0:01:17.4]} 22...
Qg4 {[%clk 0:01:07.7]} 23. h3 {[%clk 0:01:17.4]} 23... Qh5 {[%clk 0:01:07.1]}
24. Bf4 {[%clk 0:01:07.2]} 24... Bxf3 {[%clk 0:01:03.5]} 25. gxf3 {[%clk
0:01:08.1]} 25... Nxd4 {[%clk 0:01:02.7]} 26. Qe3 {[%clk 0:00:50.4]} 26... Nxf3+
{[%clk 0:00:56.1]} 27. Kg2 {[%clk 0:00:50.8]} 27... Nxe1+ {[%clk 0:00:51.7]} 28.
Rxe1 {[%clk 0:00:51.7]} 28... b5 {[%clk 0:00:44.7]} 29. axb5 {[%clk 0:00:47.5]}
29... axb5 {[%clk 0:00:45.6]} 30. Bd3 {[%clk 0:00:36.4]} 30... Rfd8 {[%clk
0:00:41.8]} 31. Be4 {[%clk 0:00:36.7]} 31... Ra4 {[%clk 0:00:38.8]} 32. Qg3
{[%clk 0:00:36.7]} 32... Kh8 {[%clk 0:00:31.1]} 33. Bf3 {[%clk 0:00:35]} 33...
Qg6 {[%clk 0:00:30.6]} 34. Bg4 {[%clk 0:00:34.4]} 34... h5 {[%clk 0:00:29]} 35.
Bc7 {[%clk 0:00:33.5]} 35... Rd3 {[%clk 0:00:20.7]} 36. Bf3 {[%clk 0:00:28.7]}
36... Qxg3+ {[%clk 0:00:19.5]} 37. Bxg3 {[%clk 0:00:29.5]} 37... Bxb2 {[%clk
0:00:14.9]} 38. Bxh5 {[%clk 0:00:29.2]} 38... Bf6 {[%clk 0:00:10.5]} 39. Bxf7
{[%clk 0:00:27.4]} 39... b4 {[%clk 0:00:10.3]} 40. Rxe6 {[%clk 0:00:27.1]} 40...
Kg7 {[%clk 0:00:09.2]} 41. Be8 {[%clk 0:00:25.9]} 41... Ra2 {[%clk 0:00:05.6]}
42. Rb6 {[%clk 0:00:26.2]} 42... Rb2 {[%clk 0:00:05.7]} 43. Rb7+ {[%clk
0:00:26.5]} 43... Kf8 {[%clk 0:00:05.3]} 44. Bg6 {[%clk 0:00:25.7]} 44... Bd4
{[%clk 0:00:04.3]} 45. Bxd3 {[%clk 0:00:24.5]} 1-0

[Event "Early-Titled-Tuesday-Blitz-January-23-2024"]
[Site "Chess.com"]
[Date "2024.01.23"]
[Round "1"]
[White "GoltsevDmitry2000"]
[Black "viniciusrego"]
[Result "1-0"]
[WhiteElo "2835"]
[BlackElo "2454"]
[TimeControl "180+1"]
[EndTime "8:07:49 PST"]
[Termination "GoltsevDmitry2000 won by resignation"]

1. e4 {[%clk 0:02:01.1]} 1... c5 {[%clk 0:02:59.6]} 2. Nf3 {[%clk 0:02:01]} 2...
d6 {[%clk 0:03:00]} 3. d4 {[%clk 0:02:01.6]} 3... cxd4 {[%clk 0:03:00.9]} 4.
Nxd4 {[%clk 0:02:02.5]} 4... Nf6 {[%clk 0:03:01.3]} 5. Nc3 {[%clk 0:02:02.9]}
5... g6 {[%clk 0:03:01.9]} 6. f4 {[%clk 0:02:00.5]} 6... Bg7 {[%clk 0:03:02.2]}
7. e5 {[%clk 0:02:00.7]} 7... Nh5 {[%clk 0:03:02.6]} 8. g4 {[%clk 0:01:55.8]}
8... Nxf4 {[%clk 0:03:02.4]} 9. Bxf4 {[%clk 0:01:56.7]} 9... dxe5 {[%clk
0:03:02]} 10. Bb5+ {[%clk 0:01:55.9]} 10... Bd7 {[%clk 0:03:01.8]} 11. Bxd7+
{[%clk 0:01:50.8]} 11... Qxd7 {[%clk 0:02:52.6]} 12. Ndb5 {[%clk 0:01:51.1]}
12... exf4 {[%clk 0:02:49.2]} 13. Qxd7+ {[%clk 0:01:49.7]} 13... Kxd7 {[%clk
0:02:48.4]} 14. O-O-O+ {[%clk 0:01:49.3]} 14... Kc8 {[%clk 0:02:45.4]} 15. Rhe1
{[%clk 0:01:48.5]} 15... Bxc3 {[%clk 0:02:30.8]} 16. Rxe7 {[%clk 0:01:39.8]}
16... Ba5 {[%clk 0:02:25.5]} 17. Nd6+ {[%clk 0:01:17.1]} 17... Kd8 {[%clk
0:02:25.3]} 18. Rxb7 {[%clk 0:01:17.7]} 18... Nc6 {[%clk 0:01:57.8]} 19. Rxf7
{[%clk 0:01:09.6]} 19... Re8 {[%clk 0:01:10]} 20. Nxe8+ {[%clk 0:00:52.2]} 20...
Kxe8 {[%clk 0:01:10.9]} 21. Rxh7 {[%clk 0:00:46.7]} 21... Rd8 {[%clk 0:00:59.1]}
22. Rf1 {[%clk 0:00:42.2]} 22... Bd2+ {[%clk 0:00:54.6]} 23. Kb1 {[%clk
0:00:42.2]} 23... Be3 {[%clk 0:00:51.9]} 24. c3 {[%clk 0:00:38.6]} 24... Rd2
{[%clk 0:00:43.9]} 25. h4 {[%clk 0:00:35.3]} 25... a5 {[%clk 0:00:30.9]} 26. h5
{[%clk 0:00:35.5]} 26... gxh5 {[%clk 0:00:30.5]} 27. gxh5 {[%clk 0:00:36.4]}
27... Ne5 {[%clk 0:00:28.2]} 28. Rb7 {[%clk 0:00:34.7]} 28... Rh2 {[%clk
0:00:14.2]} 29. Rb5 {[%clk 0:00:22.5]} 29... Nc4 {[%clk 0:00:13.7]} 30. Rd1
{[%clk 0:00:15.1]} 30... f3 {[%clk 0:00:13.3]} 31. Rf5 {[%clk 0:00:13.3]} 31...
f2 {[%clk 0:00:11.7]} 32. Ka1 {[%clk 0:00:09.6]} 32... a4 {[%clk 0:00:08.8]} 33.
b3 {[%clk 0:00:09]} 33... axb3 {[%clk 0:00:08.2]} 34. axb3 {[%clk 0:00:09.9]}
34... Nd2 {[%clk 0:00:08.2]} 35. Re5+ {[%clk 0:00:10.2]} 35... Kf7 {[%clk
0:00:08.3]} 36. Rxe3 {[%clk 0:00:10]} 36... f1=Q {[%clk 0:00:08.8]} 37. Rxf1+
{[%clk 0:00:10]} 37... Nxf1 {[%clk 0:00:08.9]} 38. Rf3+ {[%clk 0:00:10.4]} 38...
Kg7 {[%clk 0:00:07.8]} 39. Rxf1 {[%clk 0:00:10.8]} 39... Rxh5 {[%clk 0:00:08.3]}
40. Kb2 {[%clk 0:00:10.6]} 40... Kg6 {[%clk 0:00:08.6]} 41. Rd1 {[%clk 0:00:11]}
41... Rh8 {[%clk 0:00:06.9]} 42. c4 {[%clk 0:00:11.3]} 42... Kf7 {[%clk
0:00:07.4]} 43. Kc3 {[%clk 0:00:11.7]} 43... Ke7 {[%clk 0:00:07.9]} 44. b4
{[%clk 0:00:11.4]} 44... Rh1 {[%clk 0:00:08.4]} 45. Rxh1 {[%clk 0:00:11.2]} 1-0

[Event "Early-Titled-Tuesday-Blitz-January-23-2024"]
[Site "Chess.com"]
[Date "2024.01.23"]
[Round "1"]
[White "FLYD"]
[Black "NovoselovRoman"]
[Result "1-0"]
[WhiteElo "2087"]
[BlackElo "2540"]
[TimeControl "180+1"]
[EndTime "8:07:49 PST"]
[Termination "FLYD won on time"]

1. e4 {[%clk 0:03:00.9]} 1... e6 {[%clk 0:03:00.1]} 2. d4 {[%clk 0:03:00.6]}
2... d5 {[%clk 0:03:00.5]} 3. Nc3 {[%clk 0:03:00.6]} 3... Nf6 {[%clk 0:03:00]}
4. e5 {[%clk 0:03:00.3]} 4... Nfd7 {[%clk 0:03:00]} 5. Qg4 {[%clk 0:02:56.1]}
5... c5 {[%clk 0:02:56.5]} 6. Nb5 {[%clk 0:02:56.1]} 6... cxd4 {[%clk
0:02:49.8]} 7. f4 {[%clk 0:02:56]} 7... Nc6 {[%clk 0:02:44.7]} 8. Nf3 {[%clk
0:02:54.6]} 8... h5 {[%clk 0:02:36.9]} 9. Qg3 {[%clk 0:02:52.5]} 9... g6 {[%clk
0:02:35.4]} 10. Nbxd4 {[%clk 0:02:45.1]} 10... Be7 {[%clk 0:02:34.6]} 11. Nxe6
{[%clk 0:02:34.8]} 11... fxe6 {[%clk 0:02:24.2]} 12. Qxg6+ {[%clk 0:02:34.8]}
12... Kf8 {[%clk 0:02:24.9]} 13. f5 {[%clk 0:02:32.8]} 13... Ndxe5 {[%clk
0:02:13.6]} 14. Bh6+ {[%clk 0:02:31.5]} 14... Rxh6 {[%clk 0:02:14.2]} 15. Qxh6+
{[%clk 0:02:32.4]} 15... Ke8 {[%clk 0:02:10]} 16. Nxe5 {[%clk 0:02:30.4]} 16...
Nxe5 {[%clk 0:02:08.2]} 17. Qh8+ {[%clk 0:02:30.6]} 17... Kf7 {[%clk 0:02:00.5]}
18. Qxe5 {[%clk 0:02:31.5]} 18... Bf6 {[%clk 0:01:59.7]} 19. fxe6+ {[%clk
0:02:30.5]} 19... Bxe6 {[%clk 0:02:00.6]} 20. Qxh5+ {[%clk 0:02:31]} 20... Ke7
{[%clk 0:02:01.2]} 21. Qh7+ {[%clk 0:02:24.7]} 21... Kd6 {[%clk 0:01:59.6]} 22.
O-O-O {[%clk 0:02:23.3]} 22... Qb6 {[%clk 0:01:49.2]} 23. c3 {[%clk 0:02:04.7]}
23... Rf8 {[%clk 0:01:37.2]} 24. Bd3 {[%clk 0:01:58.5]} 24... Bg5+ {[%clk
0:01:12.6]} 25. Kb1 {[%clk 0:01:56.8]} 25... Rf2 {[%clk 0:01:13.5]} 26. Bc2
{[%clk 0:01:30.1]} 26... Bf5 {[%clk 0:01:11.2]} 27. Qxf5 {[%clk 0:01:25.8]}
27... Rxf5 {[%clk 0:01:10.6]} 28. Bxf5 {[%clk 0:01:26.7]} 28... Bf6 {[%clk
0:00:57.9]} 29. Rd3 {[%clk 0:01:24.4]} 29... Qf2 {[%clk 0:00:53]} 30. g4 {[%clk
0:01:03.7]} 30... d4 {[%clk 0:00:25.2]} 31. h3 {[%clk 0:01:01]} 31... Ke7 {[%clk
0:00:18.2]} 32. c4 {[%clk 0:00:49.1]} 32... a6 {[%clk 0:00:18.2]} 33. a3 {[%clk
0:00:45.6]} 33... Qg2 {[%clk 0:00:17.6]} 34. Re1+ {[%clk 0:00:43.5]} 34... Kf7
{[%clk 0:00:18]} 35. Ka2 {[%clk 0:00:39.6]} 35... Qc6 {[%clk 0:00:17.6]} 36. Ka1
{[%clk 0:00:37.6]} 36... Kg7 {[%clk 0:00:17.4]} 37. Be6 {[%clk 0:00:36.3]} 37...
Qg2 {[%clk 0:00:12]} 38. Bd5 {[%clk 0:00:33.7]} 38... Qc2 {[%clk 0:00:11.9]} 39.
Red1 {[%clk 0:00:33.7]} 39... b5 {[%clk 0:00:11]} 40. cxb5 {[%clk 0:00:31.3]}
40... axb5 {[%clk 0:00:11.9]} 41. Bb3 {[%clk 0:00:31]} 41... Qg2 {[%clk
0:00:11.1]} 42. Ka2 {[%clk 0:00:30.9]} 42... Qa8 {[%clk 0:00:10.1]} 43. g5
{[%clk 0:00:29]} 43... Bxg5 {[%clk 0:00:08.8]} 44. Rxd4 {[%clk 0:00:27.6]} 44...
Bf6 {[%clk 0:00:09.4]} 45. Rd7+ {[%clk 0:00:27.8]} 45... Kg6 {[%clk 0:00:08.9]}
46. Bc2+ {[%clk 0:00:24.2]} 46... Kh6 {[%clk 0:00:08.4]} 47. Rg1 {[%clk
0:00:20.9]} 1-0